bitfinex/quotes_SOLUSD_20230110
["timestamp","ask_amount","ask_price","bid_price","bid_amount"]
[1673359319785,20.0,16.004,15.989,5.6687597]
[1673359319982,46.88,16.003,15.989,5.6687597]
[1673359320313,149.6338,16.002,15.989,5.6687597]
[1673359320519,20.0,15.999,15.976,46.96]
[1673359320728,46.89,15.998,15.975,14.59766333]
[1673359320931,46.89,15.998,15.976,46.96]
[1673359321148,20.0,15.997,15.976,46.96]
[1673359321342,46.9,15.996,15.976,46.96]
[1673359321551,46.9,15.996,15.977,14.59766333]
[1673359321779,46.9,15.996,15.978,46.95]
[1673359321994,46.9,15.996,15.963,62.88]
[1673359321995,20.0,15.989,15.964,20.0]
[1673359322186,46.92,15.988,15.961,62.88]
[1673359322398,46.92,15.988,15.973,14.59766333]
[1673359322621,20.0,15.987,15.966,46.99]
[1673359322938,46.93,15.986,15.966,46.99]
[1673359323121,46.91,15.994,15.967,34.59766333]
[1673359323333,46.89,15.998,15.97,21.94]
[1673359323546,46.89,15.998,15.971,54.19463]
[1673359323775,46.89,15.998,15.972,8.18418]
[1673359324090,46.89,15.998,15.973,66.97]
[1673359324298,52.23314218,16.007,15.974,29.14327]
[1673359324299,46.88,16.001,15.974,29.14327]
[1673359324517,46.88,16.001,15.975,74.18282]
[1673359324703,46.87,16.005,15.976,9.14237]
[1673359324919,20.0,16.004,15.977,74.18191]
[1673359325124,46.88,16.003,15.978,29.14146]
[1673359325359,46.86,16.008,15.98,22.06]
[1673359325684,46.86,16.011,15.981,76.08011]
[1673359325870,18.55825296,16.018,15.982,7.21966]
[1673359325871,114.2569,16.013,15.982,7.21966]
[1673359326082,20.0,16.011,15.984,20.0]
[1673359326297,46.86,16.01,15.985,25.00405183]
[1673359326503,46.86,16.01,15.985,68.85]
[1673359326838,46.86,16.01,15.986,14.59766333]
[1673359327047,20.0,16.009,15.987,48.85]
[1673359327236,46.86,16.008,15.987,68.85]
[1673359327445,46.86,16.008,15.988,14.59766333]
[1673359327652,46.86,16.01,15.989,48.84]
[1673359328084,46.86,16.01,15.989,63.43766333]
[1673359328296,46.86,16.01,15.99,20.0]
[1673359328513,65.41825296,16.01,15.991,1.92]
[1673359328715,65.41825296,16.01,15.991,43.07000001]
[1673359328928,20.0,16.009,15.991,43.07000001]
[1673359329125,46.86,16.008,15.988,46.92]
[1673359329331,1.92,16.007,15.989,17.0]
[1673359329548,1.92,16.007,15.99,46.92]
[1673359329990,1.92,16.007,15.987,20.0]
[1673359329991,1.92,16.007,15.991,20.0]
[1673359330520,1.92,16.007,15.988,46.92]
[1673359330706,1.92,16.007,15.989,20.0]
[1673359330912,1.92,16.007,15.99,65.84]
[1673359331138,46.86,16.009,15.99,65.84]
[1673359331447,114.7168,16.011,15.99,65.84]
[1673359331655,20.0,16.01,15.991,20.0]
[1673359331863,20.0,16.01,15.992,48.83]
[1673359332925,40.47825296,16.009,15.992,46.91]
[1673359333144,40.47825296,16.009,15.989,20.0]
[1673359333145,46.86,16.008,15.989,20.0]
[1673359333331,1.92,16.007,15.988,20.0]
[1673359333544,21.93,16.0,15.981,46.94]
[1673359333879,20.0,15.998,15.976,20.0]
[1673359334098,161.0612,15.997,15.977,46.96]
[1673359334285,179.61945296,15.997,15.975,46.96]
[1673359334490,178.65945296,15.997,15.972,46.97]
[1673359334713,160.1012,15.997,15.973,7.22372]
[1673359334915,113.2012,15.997,15.975,20.0]
[1673359335125,20.0,15.996,15.976,46.96]
[1673359335450,113.2012,15.997,15.977,20.0]
[1673359335772,113.2012,15.997,15.978,46.95]
[1673359336503,40.47825296,15.996,15.979,17.0]
[1673359336717,46.9,15.995,15.979,17.0]
[1673359337026,20.96,15.994,15.979,17.0]
[1673359337242,0.96,15.993,15.974,46.96]
[1673359337449,0.96,15.993,15.975,20.0]
[1673359337639,0.96,15.992,15.976,46.96]
[1673359337975,0.96,15.992,15.977,20.0]
[1673359338189,0.96,15.993,15.978,46.95]
[1673359338398,0.96,15.993,15.979,20.0]
[1673359338711,108.1021,16.0,15.98,46.95]
[1673359338899,108.1021,16.0,15.981,21.92]
[1673359339109,108.1021,16.0,15.982,66.94]
[1673359339323,108.1021,16.0,15.981,1.92]
[1673359339531,46.89,15.999,15.981,1.92]
[1673359340064,20.0,15.998,15.981,1.92]
[1673359340269,46.89,15.999,15.981,1.92]
[1673359340494,108.1021,16.0,15.982,61.13955576]
[1673359340696,108.1021,16.0,15.983,1.92]
[1673359340917,46.88,16.002,15.985,20.0]
[1673359341120,119.7097,16.003,15.986,67.89]
[1673359341445,119.7097,16.003,15.987,20.96]
[1673359341640,119.7097,16.003,15.988,67.88]
[1673359341848,46.86,16.008,15.989,20.96]
[1673359342070,111.644,16.008,15.99,47.88]
[1673359342287,111.644,16.008,15.991,0.96]
[1673359342475,46.86,16.01,15.992,47.87]
[1673359342691,20.0,16.01,15.994,20.0]
[1673359342896,20.0,16.01,15.995,48.82]
[1673359343113,46.86,16.009,15.993,13.80795123]
[1673359343321,46.86,16.009,15.988,46.92]
[1673359343842,21.92,16.008,15.988,46.92]
[1673359344054,46.87,16.007,15.988,46.92]
[1673359344268,46.87,16.007,15.983,13.80795123]
[1673359344269,111.0288,16.006,15.986,46.93]
[1673359344496,20.0,16.005,15.986,46.93]
[1673359344679,20.0,16.005,15.987,15.72795123]
[1673359344891,66.87,16.005,15.988,46.92]
[1673359345093,66.87,16.005,15.989,21.92]
[1673359345315,66.87,16.005,15.99,1.92]
[1673359345526,66.87,16.005,15.988,66.92]
[1673359345952,66.87,16.005,15.989,0.96]
[1673359346165,20.96,16.004,15.982,46.94]
[1673359346382,47.84,16.003,15.981,20.0]
[1673359346705,134.2805,16.002,15.981,20.0]
[1673359347011,134.2805,16.002,15.98,33.80795123]
[1673359347012,66.88,16.001,15.98,13.80795123]
[1673359347200,20.0,16.0,15.98,13.80795123]
[1673359347412,46.89,15.999,15.98,13.80795123]
[1673359347644,20.0,15.998,15.98,13.80795123]
[1673359347866,165.1279,15.997,15.98,13.80795123]
[1673359348188,165.1279,15.997,15.976,46.96]
[1673359348397,165.1279,15.997,15.977,13.80795123]
[1673359348702,20.0,15.996,15.978,20.0]
[1673359348917,46.9,15.995,15.979,1.92]
[1673359349548,20.0,15.994,15.978,33.80795123]
[1673359349741,20.0,15.992,15.972,46.97]
[1673359349952,46.91,15.991,15.971,46.97]
[1673359350170,20.0,15.99,15.97,20.0]
[1673359350370,165.1685,15.989,15.97,20.0]
[1673359350796,20.0,15.988,15.97,20.0]
[1673359351004,46.93,15.987,15.97,13.80863268]
[1673359351333,0.96,15.986,15.97,13.80863268]
[1673359351642,46.93,15.985,15.97,13.80863268]
[1673359351855,46.93,15.985,15.966,82.88]
[1673359351856,17.0,15.984,15.966,62.88]
[1673359352055,46.94,15.983,15.965,5.6687597]
[1673359352393,20.0,15.983,15.967,13.80863268]
[1673359352699,46.94,15.982,15.966,60.79863268]
[1673359352900,46.94,15.983,15.966,60.79863268]
[1673359353100,20.0,15.982,15.967,33.80863268]
[1673359353436,48.86,15.981,15.965,5.6687597]
[1673359353645,20.0,15.979,15.965,5.6687597]
[1673359353957,48.87,15.978,15.965,5.6687597]
[1673359354362,11.3375194,15.964,15.963,62.88]
[1673359355211,11.3375194,15.964,15.955,62.88]
[1673359355615,11.3375194,15.964,15.959,62.88]
[1673359356462,145.00812845,15.957,15.954,62.88]
[1673359356681,145.00812845,15.957,15.948,62.88]
[1673359357006,177.24127063,15.957,15.95,62.88]
[1673359357316,65.30577597,15.957,15.952,20.0]
[1673359357533,65.30577597,15.957,15.953,47.03]
[1673359357727,33.07207063,15.957,15.953,47.03]
[1673359358150,33.07207063,15.957,15.954,20.0]
[1673359358477,32.18642614,15.955,15.954,37.99798089]
[1673359358665,4.23896836,15.953,15.949,13.81600166]
[1673359359090,24.23896836,15.953,15.946,47.05]
[1673359359301,24.23896836,15.953,15.946,60.86600166]
[1673359359516,24.23896836,15.953,15.946,47.05]
[1673359359743,24.23896836,15.953,15.947,13.81600166]
[1673359360265,32.20950075,15.952,15.947,36.75560804]
[1673359360585,84.46628436,15.949,15.942,29.49039163]
[1673359360793,84.46628436,15.949,15.941,109.69844252]
[1673359360794,32.16338525,15.946,15.941,109.69844252]
[1673359361108,32.16235241,15.944,15.942,20.0]
[1673359361315,32.16235241,15.944,15.941,123.51444418]
[1673359361522,32.16235241,15.944,15.941,109.69844252]
[1673359361739,32.16338525,15.946,15.942,13.81600166]
[1673359361925,32.16338525,15.946,15.941,109.69844252]
[1673359361926,64.32580351,15.946,15.941,109.69844252]
[1673359362360,32.16241826,15.943,15.941,109.69844252]
[1673359363206,32.06828892,15.942,15.941,109.69844252]
[1673359363407,64.46628436,15.943,15.941,109.69844252]
[1673359363614,29.01685114,15.942,15.941,109.69844252]
[1673359363828,29.01685114,15.942,15.941,123.51444418]
[1673359364034,29.01685114,15.942,15.941,5.6687597]
[1673359364264,58.0333131,15.942,15.941,5.6687597]
[1673359364479,29.01685114,15.942,15.941,5.6687597]
[1673359365607,61.00200307,15.942,15.941,5.6687597]
[1673359366447,29.01685114,15.942,15.941,5.6687597]
[1673359367297,18.01685114,15.942,15.941,19.48476136]
[1673359367721,18.01685114,15.942,15.941,5.6687597]
[1673359368557,18.01685114,15.942,15.938,6.72952676]
[1673359368765,18.01685114,15.942,15.939,21.92]
[1673359369295,18.01685114,15.942,15.939,20.0]
[1673359369507,18.01685114,15.942,15.937,20.0]
[1673359369823,18.01685114,15.942,15.938,15.73600166]
[1673359370042,32.16338525,15.946,15.939,40.0]
[1673359370232,29.01696022,15.948,15.94,70.92]
[1673359370474,29.01696022,15.948,15.941,20.0]
[1673359370677,29.01696022,15.948,15.942,67.06]
[1673359370909,29.01696022,15.948,15.943,1.92]
[1673359371109,29.01696022,15.948,15.944,47.05]
[1673359371319,29.01696022,15.948,15.945,21.92]
[1673359371528,29.01696022,15.948,15.946,47.05]
[1673359371740,29.01696022,15.948,15.947,1.92]
[1673359372150,6.022e-05,15.948,15.947,15.34788289]
[1673359372358,58.03402131,15.951,15.948,29.00993978]
[1673359372589,58.03402131,15.951,15.949,1.92]
[1673359372780,58.03402131,15.951,15.949,15.34788289]
[1673359372993,58.03432733,15.955,15.95,20.0]
[1673359373220,44.71322733,15.955,15.951,48.95]
[1673359373425,44.71322733,15.955,15.953,20.0]
[1673359373636,44.71322733,15.955,15.954,20.0]
[1673359374374,44.71322733,15.955,15.954,21.92]
[1673359374585,33.71322733,15.955,15.954,21.92]
[1673359374786,112.1675,15.968,15.954,35.34788289]
[1673359374996,112.1675,15.968,15.955,21.92]
[1673359375325,112.1675,15.968,15.956,20.0]
[1673359375518,112.1675,15.968,15.956,21.92]
[1673359375729,0.00370534,15.959,15.957,33.06992937]
[1673359375942,112.1675,15.968,15.958,68.93]
[1673359376373,112.1675,15.968,15.958,21.92]
[1673359376693,112.1675,15.968,15.959,20.0]
[1673359377096,112.1675,15.968,15.96,20.0]
[1673359377936,112.1675,15.968,15.96,33.42788289]
[1673359378152,57.98193262,15.971,15.961,20.0]
[1673359378364,57.98193262,15.971,15.962,1.92]
[1673359378568,57.98193262,15.971,15.962,73.46567469]
[1673359378781,57.98193262,15.971,15.963,111.39247897]
[1673359379005,57.98193262,15.971,15.964,21.92]
[1673359379218,57.98193262,15.971,15.964,75.19468717]
[1673359379410,57.98193262,15.971,15.965,33.42788289]
[1673359379622,57.98193262,15.971,15.966,21.92]
[1673359379827,57.98193262,15.971,15.966,20.96]
[1673359380151,57.98193262,15.971,15.963,20.0]
[1673359380369,20.0,15.97,15.963,20.0]
[1673359380798,57.98193262,15.971,15.963,20.0]
[1673359381016,57.98193262,15.971,15.964,1.92]
[1673359381517,231.96468107,15.972,15.964,1.92]
[1673359381518,199.08948478,15.972,15.964,1.92]
[1673359381729,199.08948478,15.972,15.965,74.21734]
[1673359381952,199.08948478,15.972,15.967,20.0]
[1673359382147,199.08948478,15.972,15.968,67.94]
[1673359382353,163.73478478,15.972,15.969,20.96]
[1673359382574,4.90972845,15.972,15.969,28.18553]
[1673359382777,4.90972845,15.972,15.97,101.36788289]
[1673359382984,4.90972845,15.972,15.971,0.96]
[1673359383198,4.90972845,15.972,15.971,15.34788289]
[1673359383414,4.90972845,15.972,15.971,35.34788289]
[1673359383616,104.985096,15.977,15.971,35.34788289]
[1673359383837,104.985096,15.977,15.972,39.28788289]
[1673359384072,104.985096,15.977,15.973,55.15372]
[1673359384261,24.985096,15.977,15.974,28.18327]
[1673359384470,115.98524725,15.982,15.974,28.18327]
[1673359384471,115.98524725,15.982,15.975,75.14282]
[1673359384697,115.98524725,15.982,15.977,24.985096]
[1673359384905,115.98524725,15.982,15.979,24.985096]
[1673359385118,95.9644814,15.983,15.981,0.68421826]
[1673359385310,0.0044814,15.983,15.982,56.83783881]
[1673359385520,0.0044814,15.983,15.982,114.95563061]
[1673359385738,0.0044814,15.983,15.982,163.55068705]
[1673359386676,0.0044814,15.983,15.982,112.00501236]
[1673359386887,0.0044814,15.983,15.982,29.89783881]
[1673359387099,0.0044814,15.983,15.981,20.0]
[1673359387326,0.0044814,15.983,15.978,20.0]
[1673359389000,0.0044814,15.983,15.976,20.0]
[1673359390164,0.0044814,15.983,15.978,20.0]
[1673359390472,0.0044814,15.983,15.976,20.0]
[1673359392264,0.0044814,15.983,15.977,20.0]
[1673359392459,0.0044814,15.983,15.977,48.77576578]
[1673359392675,0.0044814,15.983,15.977,35.34788289]
[1673359392891,115.9625725,15.989,15.979,20.0]
[1673359393110,115.9625725,15.989,15.98,1.92]
[1673359393429,115.9625725,15.989,15.979,20.0]
[1673359393430,20.0,15.988,15.979,20.0]
[1673359394248,20.0,15.988,15.976,66.96]
[1673359394465,20.0,15.988,15.975,20.0]
[1673359394673,1.92,15.987,15.974,13.42788289]
[1673359394875,1.92,15.987,15.973,20.0]
[1673359395102,48.85,15.987,15.974,20.0]
[1673359395314,20.0,15.986,15.97,20.0]
[1673359395511,46.93,15.985,15.97,20.0]
[1673359396153,20.0,15.984,15.97,20.0]
[1673359396772,20.0,15.984,15.971,1.92]
[1673359396982,129.7108,15.984,15.971,1.92]
[1673359398261,129.7108,15.984,15.969,13.42788289]
[1673359398459,48.86,15.983,15.964,31.98746498]
[1673359398662,48.86,15.983,15.966,13.42788289]
[1673359398663,20.0,15.982,15.966,13.42788289]
[1673359398888,48.86,15.981,15.967,20.0]
[1673359399196,20.0,15.98,15.963,31.98746498]
[1673359399408,83.95,15.979,15.956,63.85952365]
[1673359399623,83.95,15.979,15.956,13.42788289]
[1673359399624,84.91,15.979,15.956,13.42788289]
[1673359400049,20.0,15.978,15.957,20.0]
[1673359400235,64.92,15.977,15.957,20.0]
[1673359400448,0.96,15.976,15.955,31.98746498]
[1673359400657,46.96,15.975,15.956,20.0]
[1673359400891,0.96,15.974,15.956,20.0]
[1673359401101,20.0,15.972,15.955,31.98746498]
[1673359401312,46.97,15.971,15.954,31.98746498]
[1673359401506,20.0,15.97,15.955,20.0]
[1673359401830,46.97,15.971,15.955,51.98746498]
[1673359402047,46.97,15.971,15.959,31.98746498]
[1673359402261,46.96,15.974,15.957,20.0]
[1673359402570,46.96,15.974,15.96,0.96]
[1673359402784,46.96,15.974,15.96,20.0]
[1673359402976,20.0,15.973,15.958,20.0]
[1673359403397,46.97,15.972,15.956,20.0]
[1673359404448,46.97,15.972,15.957,13.42788289]
[1673359404677,20.0,15.971,15.958,21.92]
[1673359404890,20.0,15.971,15.958,20.0]
[1673359405720,20.0,15.971,15.954,20.0]
[1673359405721,20.0,15.971,15.955,20.0]
[1673359406354,20.0,15.971,15.956,1.92]
[1673359406567,20.0,15.971,15.955,20.0]
[1673359406782,46.98,15.97,15.955,20.0]
[1673359406999,20.96,15.969,15.955,20.0]
[1673359407208,46.98,15.968,15.953,20.0]
[1673359407400,271.67,15.968,15.953,31.98746498]
[1673359407608,271.67,15.968,15.948,108.03740476]
[1673359407838,271.67,15.968,15.95,13.42788289]
[1673359408046,20.96,15.967,15.95,13.42788289]
[1673359408269,20.96,15.967,15.946,79.03746498]
[1673359408270,92.71215903,15.966,15.946,31.98746498]
[1673359408453,92.71215903,15.966,15.944,31.98746498]
[1673359408454,22.06,15.96,15.944,31.98746498]
[1673359408656,22.06,15.96,15.94,13.42788289]
[1673359408657,48.64330112,15.959,15.943,31.98746498]
[1673359408991,1.63330112,15.962,15.945,20.0]
[1673359409206,47.0,15.961,15.945,20.0]
[1673359409417,46.99,15.965,15.946,60.47788289]
[1673359409610,0.71528467,15.964,15.947,1.92]
[1673359409820,0.71528467,15.964,15.947,15.34788289]
[1673359410049,0.71528467,15.964,15.948,33.42788289]
[1673359410236,17.71528467,15.964,15.948,13.42788289]
[1673359410447,67.0,15.963,15.945,67.05]
[1673359410653,67.0,15.963,15.944,31.98746498]
[1673359410654,0.87597588,15.962,15.944,31.98746498]
[1673359410888,0.87597588,15.962,15.942,12.69189817]
[1673359410889,47.0,15.961,15.942,12.69189817]
[1673359411097,1.20754139,15.96,15.943,20.0]
[1673359411304,47.01,15.959,15.946,20.0]
[1673359411517,46.99,15.965,15.947,20.0]
[1673359411836,46.99,15.965,15.947,32.69189817]
[1673359412142,46.99,15.965,15.949,20.0]
[1673359412464,46.99,15.965,15.95,14.61189817]
[1673359412866,1.92,15.964,15.95,14.61189817]
[1673359413076,47.0,15.963,15.947,20.0]
[1673359413303,20.0,15.962,15.947,20.0]
[1673359413512,47.96,15.961,15.947,20.0]
[1673359413708,0.96,15.961,15.947,20.0]
[1673359413925,47.97,15.96,15.947,20.0]
[1673359414249,0.69765825,15.959,15.947,20.0]
[1673359414982,0.69765825,15.959,15.948,20.96]
[1673359415175,118.3545,15.96,15.949,68.0]
[1673359415399,118.3545,15.96,15.95,0.96]
[1673359415615,118.3545,15.96,15.95,13.65189817]
[1673359415834,118.3545,15.96,15.951,20.96]
[1673359416476,118.3545,15.96,15.951,20.0]
[1673359416875,118.3545,15.96,15.95,20.0]
[1673359417288,118.3545,15.96,15.951,1.92]
[1673359417723,46.97,15.972,15.96,101.48885416]
[1673359417938,117.8054,15.967,15.96,101.48885416]
[1673359420790,117.8054,15.967,15.961,20.0]
[1673359421845,117.8054,15.967,15.96,101.48885416]
[1673359422021,20.0,15.966,15.96,101.48885416]
[1673359422363,66.99,15.965,15.94,31.98746498]
[1673359422567,66.99,15.965,15.945,12.69189817]
[1673359422896,66.99,15.965,15.941,47.06]
[1673359422897,20.74494911,15.963,15.941,47.06]
[1673359423093,1.05785217,15.961,15.94,12.69189817]
[1673359423283,48.93,15.96,15.94,12.69189817]
[1673359423498,132.7319,15.959,15.936,47.08]
[1673359423716,132.7319,15.959,15.935,20.0]
[1673359423717,72.18672,15.958,15.935,20.0]
[1673359423937,20.0,15.956,15.935,20.0]
[1673359424158,64.98,15.955,15.936,12.69189817]
[1673359424472,0.96,15.954,15.935,20.0]
[1673359424780,47.03,15.953,15.936,20.0]
[1673359424973,20.96,15.952,15.936,20.0]
[1673359425178,47.03,15.951,15.936,20.0]
[1673359425393,0.96,15.95,15.936,20.0]
[1673359425933,0.96,15.949,15.936,20.0]
[1673359426453,47.03,15.951,15.936,20.0]
[1673359426676,0.96,15.95,15.937,20.0]
[1673359426883,0.96,15.95,15.938,20.0]
[1673359427405,47.03,15.953,15.938,20.0]
[1673359427406,47.03,15.953,15.939,20.96]
[1673359427607,47.02,15.956,15.94,0.96]
[1673359427806,132.7319,15.959,15.941,0.96]
[1673359427807,47.01,15.957,15.941,0.96]
[1673359428017,20.0,15.956,15.942,0.96]
[1673359428256,20.0,15.956,15.941,12.69189817]
[1673359428437,47.02,15.955,15.939,20.0]
[1673359428647,20.0,15.954,15.939,20.0]
[1673359429093,20.0,15.954,15.938,67.07]
[1673359429395,132.7319,15.959,15.939,67.07]
[1673359429810,112.7319,15.959,15.941,20.0]
[1673359430146,112.7319,15.959,15.942,67.06]
[1673359430337,112.7319,15.959,15.943,1.92]
[1673359430588,20.0,15.958,15.944,47.05]
[1673359430797,112.7319,15.959,15.945,21.92]
[1673359431003,112.7319,15.959,15.946,47.05]
[1673359431221,112.7319,15.959,15.947,20.0]
[1673359431222,20.96,15.958,15.947,20.0]
[1673359431637,0.96,15.958,15.947,20.0]
[1673359431845,0.96,15.958,15.945,20.0]
[1673359432178,0.96,15.958,15.946,47.05]
[1673359432369,0.96,15.958,15.947,20.0]
[1673359432897,112.7319,15.959,15.948,1.92]
[1673359433102,112.7319,15.959,15.948,48.96]
[1673359433423,112.7319,15.959,15.949,20.0]
[1673359434061,112.7319,15.959,15.948,21.92]
[1673359434267,112.7319,15.959,15.948,20.0]
[1673359434470,0.96,15.958,15.948,20.0]
[1673359434686,0.96,15.958,15.945,52.69189817]
[1673359434896,0.96,15.958,15.947,20.0]
[1673359435104,0.96,15.958,15.948,20.0]
[1673359435307,20.96,15.958,15.948,20.0]
[1673359435524,112.7319,15.959,15.948,20.0]
[1673359435850,20.0,15.958,15.948,20.0]
[1673359436063,20.0,15.958,15.947,20.0]
[1673359436680,20.0,15.958,15.948,0.96]
[1673359436887,20.0,15.958,15.948,1.92]
[1673359437112,112.7319,15.959,15.948,14.61189817]
[1673359437323,112.7319,15.959,15.949,20.96]
[1673359437540,112.7319,15.959,15.95,0.96]
[1673359438190,112.7319,15.959,15.949,20.0]
[1673359438381,20.0,15.958,15.947,20.0]
[1673359438820,20.0,15.958,15.948,47.04]
[1673359439017,20.0,15.958,15.949,20.0]
[1673359439225,20.0,15.958,15.947,20.0]
[1673359439864,112.7319,15.959,15.947,20.0]
[1673359440289,112.7319,15.959,15.948,0.96]
[1673359440603,112.7319,15.959,15.948,1.92]
[1673359440818,112.7319,15.959,15.948,21.92]
[1673359441005,112.7319,15.959,15.949,20.0]
[1673359441969,46.99,15.965,15.95,1.92]
[1673359442165,110.0112,15.966,15.95,103.25746498]
[1673359442382,110.0112,15.966,15.951,34.60807033]
[1673359442587,110.0112,15.966,15.952,48.95]
[1673359442798,110.0112,15.966,15.953,52.87022354]
[1673359443012,110.0112,15.966,15.954,67.02]
[1673359443219,110.0112,15.966,15.955,20.0]
[1673359443433,46.97,15.973,15.955,33.72531177]
[1673359443641,46.92,15.989,15.96,22.32]
[1673359443851,109.2705,15.992,15.96,22.32]
[1673359443852,66.91,15.991,15.964,31.98746498]
[1673359444068,160.946,15.991,15.97,22.32]
[1673359444391,46.91,15.993,15.971,68.9570942]
[1673359444581,281.89787158,15.996,15.98,22.26]
[1673359444792,281.89787158,15.996,15.981,89.8870942]
[1673359445102,281.89787158,15.996,15.981,103.61240597]
[1673359445314,290.23977115,15.997,15.981,103.61240597]
[1673359445558,290.23977115,15.997,15.982,65.59278864]
[1673359445742,290.23977115,15.997,15.983,88.86]
[1673359445946,290.23977115,15.997,15.99,22.32]
[1673359446153,290.23977115,15.997,15.991,67.87]
[1673359446380,290.23977115,15.997,15.992,0.96]
[1673359446592,290.23977115,15.997,15.994,20.0]
[1673359446799,290.23977115,15.997,15.995,68.82]
[1673359446993,290.23977115,15.997,15.995,67.86]
[1673359447202,290.23977115,15.997,15.995,20.0]
[1673359447412,290.23977115,15.997,15.985,46.93]
[1673359447632,290.23977115,15.997,15.986,20.0]
[1673359447843,290.23977115,15.997,15.986,13.72531177]
[1673359448054,287.40255544,16.013,15.987,33.72531177]
[1673359448272,283.63576578,16.011,15.988,0.76486505]
[1673359448577,286.38170036,16.008,15.989,20.0]
[1673359448793,47.83,16.007,15.99,1.92]
[1673359449001,47.83,16.007,15.99,15.64531177]
[1673359449233,281.26064601,16.006,15.984,46.93]
[1673359449431,283.85438834,16.004,15.986,13.72531177]
[1673359449641,287.50763421,16.0,15.987,20.0]
[1673359449872,283.50455485,16.002,15.987,20.0]
[1673359450086,287.50763421,16.0,15.987,20.0]
[1673359450391,281.54622116,16.001,15.987,20.0]
[1673359450595,308.60522246,15.998,15.987,20.0]
[1673359450801,46.88,16.002,15.987,20.0]
[1673359450802,289.50984265,15.999,15.987,20.0]
[1673359451442,0.96,15.998,15.987,20.0]
[1673359451777,288.60522246,15.998,15.987,20.0]
[1673359451955,283.20853001,16.003,15.987,20.0]
[1673359452167,281.54622116,16.001,15.988,13.72531177]
[1673359452379,281.54622116,16.001,15.989,20.0]
[1673359452697,283.85438834,16.004,15.99,57.96531177]
[1673359452904,285.10098748,16.01,15.991,46.91]
[1673359453124,285.10098748,16.01,15.992,20.96]
[1673359453330,281.95922609,16.013,15.993,47.87]
[1673359453544,283.63576578,16.011,15.995,20.0]
[1673359453868,0.96,16.01,15.996,1.92]
[1673359454074,0.96,16.009,15.996,20.96]
[1673359455228,286.38170036,16.008,15.996,20.96]
[1673359455445,286.38170036,16.008,15.997,0.96]
[1673359455644,281.26064601,16.006,15.997,0.96]
[1673359455862,286.38170036,16.008,15.997,0.96]
[1673359456265,0.96,16.007,15.996,0.96]
[1673359456478,20.0,16.005,15.986,46.93]
[1673359456682,20.0,16.005,15.987,20.0]
[1673359456897,20.0,16.003,15.982,46.94]
[1673359457106,46.88,16.002,15.982,46.94]
[1673359457320,46.87,16.006,15.984,46.93]
[1673359457657,46.86,16.01,15.991,20.0]
[1673359457867,46.85,16.013,15.992,46.91]
[1673359458175,46.84,16.016,15.993,20.0]
[1673359458381,46.84,16.016,15.994,47.87]
[1673359458704,46.84,16.016,15.996,20.0]
[1673359458912,46.85,16.013,15.997,1.92]
[1673359459226,46.84,16.016,15.997,1.92]